bitfinex-derivatives/quotes_BTCF0:USTF0_20250810
["timestamp","ask_amount","ask_price","bid_price","bid_amount"]
[1754806034982,0.3402494,118240.0,118230.0,0.64714915]
[1754806035471,0.7010494,118240.0,118230.0,0.64714915]
[1754806036580,0.95623855,118240.0,118230.0,0.64614915]
[1754806036787,0.95623855,118240.0,118230.0,0.39096]
[1754806036972,0.95623855,118240.0,118230.0,0.64614915]
[1754806037281,0.95623855,118240.0,118230.0,0.39096]
[1754806037480,0.95723855,118240.0,118230.0,0.64614915]
[1754806037874,0.95723855,118240.0,118230.0,0.4755276]
[1754806038087,0.7030494,118240.0,118230.0,0.72871675]
[1754806038482,0.7030494,118240.0,118230.0,0.64414915]
[1754806038780,0.7030494,118240.0,118230.0,0.9839059]
[1754806038970,0.7030494,118240.0,118230.0,0.72871675]
[1754806039168,0.7030494,118240.0,118230.0,0.9839059]
[1754806039573,0.7030494,118240.0,118230.0,0.72871675]
[1754806039773,0.7020494,118240.0,118230.0,0.72871675]
[1754806039973,0.7020494,118240.0,118230.0,0.99771675]
[1754806040272,0.7010494,118240.0,118230.0,0.99771675]
[1754806040472,0.7020494,118240.0,118230.0,0.99771675]
[1754806040882,0.7020494,118240.0,118230.0,1.2529059]
[1754806041076,0.3402494,118240.0,118230.0,1.2539059]
[1754806042285,0.3402494,118240.0,118230.0,0.99871675]
[1754806042783,0.3402494,118240.0,118230.0,0.7435276]
[1754806043085,0.95623855,118240.0,118230.0,0.52518915]
[1754806043287,0.95623855,118240.0,118230.0,0.91410915]
[1754806044678,1.04128261,118240.0,118230.0,0.27]
[1754806044887,1.21043461,118240.0,118230.0,0.27]
[1754806045086,1.21043461,118240.0,118230.0,0.23081]
[1754806045283,1.21043461,118240.0,118230.0,0.001]
[1754806046286,1.21143461,118240.0,118230.0,0.001]
[1754806046779,0.1523376,118230.0,118220.0,0.40640829]
[1754806046981,0.6185276,118230.0,118220.0,0.40630829]
[1754806047985,0.6185276,118230.0,118220.0,0.40730829]
[1754806057094,0.2577276,118230.0,118220.0,0.40730829]
[1754806057486,0.6185276,118230.0,118220.0,0.40730829]
[1754806058196,0.2577276,118230.0,118220.0,0.40730829]
[1754806058397,0.6185276,118230.0,118220.0,0.40730829]
[1754806060698,0.6185276,118230.0,118220.0,0.43145829]
[1754806064697,0.87369302,118230.0,118220.0,0.68662371]
[1754806064902,0.6185276,118230.0,118220.0,0.68662371]
[1754806065202,0.87369302,118230.0,118220.0,0.68662371]
[1754806069098,0.87369302,118230.0,118220.0,0.43145829]
[1754806069399,0.87369302,118230.0,118220.0,0.66923542]
[1754806071106,0.51289302,118230.0,118220.0,0.66923542]
[1754806071302,0.87369302,118230.0,118220.0,0.66923542]
[1754806072203,0.6185276,118230.0,118220.0,0.66923542]
[1754806072506,0.87369302,118230.0,118220.0,0.66923542]
[1754806073411,0.87369302,118230.0,118220.0,0.28031542]
[1754806073612,0.87369302,118230.0,118220.0,0.66919542]
[1754806074413,0.87369302,118230.0,118220.0,0.92436084]
[1754806074817,0.87369302,118230.0,118220.0,0.94133277]
[1754806075007,0.87369302,118230.0,118220.0,0.43100193]
[1754806075207,0.87369302,118230.0,118220.0,0.94133277]
[1754806075608,0.87369302,118230.0,118220.0,0.43100193]
[1754806075811,0.87369302,118230.0,118220.0,0.68616735]
[1754806076124,0.87369302,118230.0,118220.0,0.94133277]
[1754806076709,0.87369302,118230.0,118220.0,0.43100193]
[1754806076917,0.51289302,118230.0,118220.0,0.94133277]
[1754806077823,0.87369302,118230.0,118220.0,0.94133277]
[1754806079423,0.87369302,118230.0,118220.0,1.02590737]
[1754806079626,0.87369302,118230.0,118220.0,1.05660737]
[1754806080427,0.6185276,118230.0,118220.0,1.05660737]
[1754806083220,0.87369302,118230.0,118220.0,1.05660737]
[1754806083629,0.6185276,118230.0,118220.0,1.05660737]
[1754806083829,0.87369302,118230.0,118220.0,1.05660737]
[1754806085731,0.6185276,118230.0,118220.0,1.05660737]
[1754806085930,0.87369302,118230.0,118220.0,1.05660737]
[1754806088632,0.87369302,118230.0,118220.0,0.54627653]
[1754806088832,0.87369302,118230.0,118220.0,0.97203277]
[1754806090430,0.87369302,118230.0,118220.0,0.68616735]
[1754806093437,0.87369302,118230.0,118220.0,0.68604735]
[1754806093633,0.6185276,118230.0,118220.0,0.68604735]
[1754806093830,0.87369302,118230.0,118220.0,0.29728735]
[1754806094031,0.87369302,118230.0,118220.0,0.94117277]
[1754806094231,0.87369302,118230.0,118220.0,0.68600735]
[1754806094735,0.87369302,118230.0,118220.0,0.94117277]
[1754806095136,0.87369302,118230.0,118220.0,0.68600735]
[1754806101344,0.6185276,118230.0,118220.0,0.68600735]
[1754806101546,0.87369302,118230.0,118220.0,0.94117277]
[1754806103044,0.87369302,118230.0,118220.0,0.68600735]
[1754806103946,0.87369302,118230.0,118220.0,0.43084193]
[1754806104148,0.87369302,118230.0,118220.0,0.68600735]
[1754806104349,0.87369302,118230.0,118220.0,0.94117277]
[1754806105741,0.87369302,118230.0,118220.0,0.04212193]
[1754806105950,0.0845817,118210.0,118200.0,0.0759715]
[1754806106243,0.0846031,118180.0,118170.0,0.56751593]
[1754806106448,0.2505731,118180.0,118170.0,0.87428174]
[1754806106636,0.50573852,118180.0,118170.0,0.71369994]
[1754806107650,0.2505731,118180.0,118170.0,0.71369994]
[1754806108550,0.2505731,118180.0,118170.0,0.79831024]
[1754806108752,0.2505731,118180.0,118170.0,0.88361322]
[1754806108944,0.2505731,118180.0,118170.0,0.88661322]
[1754806109655,0.0846031,118180.0,118170.0,1.24741322]
[1754806111058,0.0846031,118180.0,118170.0,1.51641322]
[1754806113854,0.0846031,118180.0,118170.0,1.51637322]
[1754806115753,0.1209631,118180.0,118170.0,1.51637322]
[1754806116249,0.0846031,118180.0,118170.0,1.52408322]
[1754806120348,0.2537999,118190.0,118170.0,1.86253962]
[1754806120648,0.2537999,118190.0,118180.0,0.8372716]
[1754806122153,0.084596,118190.0,118180.0,1.1062716]
[1754806122357,0.2537766,118200.0,118190.0,0.135996]
[1754806122557,0.1691817,118200.0,118190.0,1.24327045]
[1754806123256,0.0845889,118200.0,118190.0,1.49704825]
[1754806124258,0.0855889,118200.0,118190.0,1.49704825]
[1754806124558,0.0865889,118200.0,118190.0,1.49704825]
[1754806124854,0.0022,118200.0,118190.0,2.10671665]
[1754806125056,0.0002,118200.0,118190.0,2.35489615]
[1754806126459,0.0847889,118200.0,118190.0,2.35489615]
[1754806126758,0.0847889,118200.0,118190.0,2.01442775]
[1754806127651,0.0002,118200.0,118190.0,2.01442775]
[1754806130059,0.0847888,118200.0,118190.0,2.01442775]
[1754806130652,0.0847888,118200.0,118190.0,1.84521975]
[1754806130856,0.0847888,118200.0,118190.0,2.01442775]
[1754806132066,0.1211488,118200.0,118190.0,2.01442775]
[1754806132355,0.1211488,118200.0,118190.0,1.65362775]
[1754806132559,0.1211488,118200.0,118190.0,2.01442775]
[1754806132767,0.1211488,118200.0,118190.0,1.84521975]
[1754806133162,0.1211488,118200.0,118190.0,1.85292975]
[1754806134660,0.1211488,118200.0,118190.0,1.49212975]
[1754806134860,0.1211488,118200.0,118190.0,1.85292975]
[1754806136459,0.03656,118200.0,118190.0,1.85292975]
[1754806136667,0.0002,118200.0,118190.0,1.85292975]
[1754806137767,0.0847888,118200.0,118190.0,1.85292975]
[1754806138362,0.0002,118200.0,118190.0,1.85292975]
[1754806138965,0.0847888,118200.0,118190.0,1.85292975]
[1754806139371,0.1211488,118200.0,118190.0,1.85292975]
[1754806140768,0.03656,118200.0,118190.0,1.85292975]
[1754806141068,0.0002,118200.0,118190.0,1.85292975]
[1754806141969,0.03636,118210.0,118200.0,0.1079688]
[1754806142167,0.03636,118210.0,118200.0,1.4467256]
[1754806142362,0.4135243,118220.0,118210.0,0.0845816]
[1754806142564,0.4135243,118220.0,118210.0,1.2425838]
[1754806142764,0.0845745,118220.0,118210.0,1.5115838]
[1754806143865,0.0855745,118220.0,118210.0,1.5115838]
[1754806144171,0.1219345,118220.0,118210.0,1.5115838]
[1754806144470,0.1219345,118220.0,118210.0,1.52439652]
[1754806144972,0.1239345,118220.0,118210.0,1.54339652]
[1754806145470,0.1229345,118220.0,118210.0,1.53639652]
[1754806145966,0.1219345,118220.0,118210.0,1.54639652]
[1754806146171,0.1229345,118220.0,118210.0,1.54639652]
[1754806146872,0.1229345,118220.0,118210.0,1.54239652]
[1754806150270,0.1229345,118220.0,118210.0,1.55009652]
[1754806150473,0.1229345,118220.0,118210.0,1.62606802]
[1754806150659,0.0865745,118220.0,118210.0,1.62606802]
[1754806150861,0.0865745,118220.0,118210.0,1.55009652]
[1754806151265,0.0865745,118220.0,118210.0,1.62606802]
[1754806151770,0.1233845,118220.0,118210.0,1.62606802]
[1754806156779,0.1879045,118220.0,118210.0,1.62606802]
[1754806157080,0.2492245,118220.0,118210.0,1.62606802]
[1754806157372,0.1879045,118220.0,118210.0,1.59804802]
[1754806157572,0.2198845,118220.0,118210.0,1.52207652]
[1754806157773,0.2492245,118220.0,118210.0,1.62478802]
[1754806158376,0.2492245,118220.0,118210.0,1.5360038]
[1754806160776,0.2492245,118220.0,118210.0,1.6119753]
[1754806160976,0.2492245,118220.0,118210.0,1.6121753]
[1754806161278,0.2492245,118220.0,118210.0,1.5362038]
[1754806165082,0.2492245,118220.0,118210.0,1.1754038]
[1754806165283,0.2492245,118220.0,118210.0,1.5362038]
[1754806172591,0.2492245,118220.0,118210.0,1.6121753]
[1754806174588,0.1879045,118220.0,118210.0,1.6121753]
[1754806174799,0.1879045,118220.0,118210.0,1.78194202]
[1754806176387,0.0865745,118220.0,118210.0,1.78194202]
[1754806177680,0.1221545,118220.0,118210.0,1.78194202]
[1754806177886,0.0865745,118220.0,118210.0,1.78194202]
[1754806179691,0.0002,118230.0,118220.0,0.1098745]
[1754806179895,0.0845673,118230.0,118220.0,1.58939178]
[1754806180296,0.0845673,118230.0,118220.0,1.51342028]
[1754806180788,0.0845673,118230.0,118220.0,1.51442028]
[1754806181396,0.0845673,118230.0,118220.0,1.51642028]
[1754806182098,0.0845673,118230.0,118220.0,1.78542028]
[1754806182897,0.0845673,118230.0,118220.0,1.36014476]
[1754806183097,0.1201473,118230.0,118220.0,1.36014476]
[1754806183598,0.1201473,118230.0,118220.0,1.36975476]
[1754806184298,0.1201473,118230.0,118220.0,1.37745476]
[1754806184594,0.1390573,118230.0,118220.0,1.37745476]
[1754806184797,0.2454373,118230.0,118220.0,1.37745476]
[1754806185499,0.2454373,118230.0,118220.0,1.29288026]
[1754806192099,0.2454373,118230.0,118220.0,0.93208026]
[1754806192402,0.2454373,118230.0,118220.0,1.29288026]
[1754806193404,0.2454373,118230.0,118220.0,0.93208026]
[1754806193603,0.2454373,118230.0,118220.0,1.29288026]
[1754806194205,0.2454373,118230.0,118220.0,1.36885176]
[1754806195303,0.2454373,118230.0,118220.0,1.29288026]
[1754806203720,0.2454373,118230.0,118220.0,1.3404831]
[1754806203912,0.2454373,118230.0,118220.0,1.68056026]
[1754806204622,0.2454373,118230.0,118220.0,1.85065692]
[1754806204817,0.1603673,118230.0,118220.0,1.18396382]
[1754806205017,0.86132421,118230.0,118220.0,0.56807691]
[1754806205222,0.86132421,118230.0,118220.0,0.93207691]
[1754806205417,0.50052421,118230.0,118220.0,0.93207691]
[1754806205621,0.86132421,118230.0,118220.0,0.93207691]
[1754806206222,0.86132421,118230.0,118220.0,0.93107691]
[1754806206823,0.86132421,118230.0,118220.0,0.92907691]
[1754806207032,0.86232421,118230.0,118220.0,0.92907691]
[1754806207427,0.86132421,118230.0,118220.0,0.92907691]
[1754806207730,0.86132421,118230.0,118220.0,0.93007691]
[1754806210332,0.50052421,118230.0,118220.0,0.95219691]
[1754806211230,0.86132421,118230.0,118220.0,0.95219691]
[1754806211432,0.50052421,118230.0,118220.0,0.95219691]
[1754806211735,0.86132421,118230.0,118220.0,0.95219691]
[1754806213829,0.86132421,118230.0,118220.0,0.69711]
[1754806214029,0.86132421,118230.0,118220.0,0.95219691]
[1754806215536,0.50052421,118230.0,118220.0,0.95219691]
[1754806215736,0.86132421,118230.0,118220.0,0.95219691]
[1754806216436,0.86132421,118230.0,118220.0,0.69711]
[1754806216637,0.86132421,118230.0,118220.0,0.95219691]
[1754806216839,0.6062373,118230.0,118220.0,0.95219691]
[1754806217028,0.86132421,118230.0,118220.0,0.95219691]
[1754806217231,0.50052421,118230.0,118220.0,1.03677141]
[1754806217431,0.50052421,118230.0,118220.0,1.29185832]
[1754806217630,0.2454373,118230.0,118220.0,1.29185832]
[1754806217933,0.50052421,118230.0,118220.0,1.29185832]
[1754806218140,0.2454373,118230.0,118220.0,1.29185832]
[1754806218939,0.2454373,118230.0,118220.0,1.31609832]
[1754806222238,0.50052421,118230.0,118220.0,1.31609832]
[1754806223341,0.2454373,118230.0,118220.0,1.31609832]
[1754806223545,0.2454373,118230.0,118220.0,1.67689832]
[1754806224436,0.2454373,118230.0,118220.0,1.1667245]
[1754806224640,0.2454373,118230.0,118220.0,1.31609832]
[1754806225242,0.2454373,118230.0,118220.0,1.67689832]
[1754806226037,0.2454373,118230.0,118220.0,1.31609832]
[1754806227542,0.2454373,118230.0,118220.0,0.8059245]
[1754806227744,0.2454373,118230.0,118220.0,1.31609832]
[1754806230146,0.50052421,118230.0,118220.0,1.31609832]
[1754806232842,0.2454373,118230.0,118220.0,1.31609832]
[1754806233041,0.50052421,118230.0,118220.0,1.31609832]
[1754806233738,0.2454373,118230.0,118220.0,1.31609832]
[1754806236450,0.2454373,118230.0,118220.0,0.8059245]
[1754806236751,0.2454373,118230.0,118220.0,1.31609832]
[1754806237050,0.2454373,118230.0,118220.0,0.8059245]
[1754806237350,0.2454373,118230.0,118220.0,1.31609832]
[1754806245851,0.2454373,118230.0,118220.0,0.92841832]
[1754806246053,0.2454373,118230.0,118220.0,1.31573832]
[1754806246352,0.50052421,118230.0,118220.0,1.31573832]
[1754806246655,0.2454373,118230.0,118220.0,1.31573832]
[1754806246954,0.50052421,118230.0,118220.0,1.31573832]
[1754806247454,0.2454373,118230.0,118220.0,1.31573832]
[1754806247652,0.50052421,118230.0,118220.0,1.31573832]
[1754806253252,0.2454373,118230.0,118220.0,1.31573832]
[1754806255655,0.2454373,118230.0,118220.0,0.84384382]
[1754806255848,0.50052421,118230.0,118220.0,0.97599691]
[1754806256049,0.50052421,118230.0,118220.0,1.23108382]
[1754806256547,0.50052421,118230.0,118220.0,0.97599691]
[1754806260866,0.2454373,118230.0,118220.0,0.97599691]
[1754806261361,0.2454373,118230.0,118220.0,1.23108382]
[1754806261362,0.50052421,118230.0,118220.0,1.23108382]
[1754806261961,0.50052421,118230.0,118220.0,0.97599691]
[1754806269667,0.2454373,118230.0,118220.0,0.97599691]
[1754806269867,0.50052421,118230.0,118220.0,0.97599691]
[1754806272966,0.2454373,118230.0,118220.0,0.97599691]
[1754806273265,0.2454373,118230.0,118220.0,1.01237901]
[1754806273266,0.49552421,118230.0,118220.0,1.01237901]
[1754806273866,0.49552421,118230.0,118220.0,1.03419901]
[1754806274268,0.49552421,118230.0,118220.0,0.97341691]
[1754806275368,0.49652421,118230.0,118220.0,0.97341691]
[1754806275663,0.49652421,118230.0,118220.0,0.97241691]
[1754806275864,0.49752421,118230.0,118220.0,0.97241691]
[1754806276266,0.49552421,118230.0,118220.0,0.97241691]
[1754806276967,0.2404373,118230.0,118220.0,0.97241691]
[1754806277270,0.2404373,118230.0,118220.0,1.22750382]
[1754806278370,0.2404373,118230.0,118220.0,1.31207802]
[1754806281968,0.2404373,118230.0,118220.0,0.8019042]
[1754806282172,0.2404373,118230.0,118220.0,1.31207802]
[1754806285674,0.49552421,118230.0,118220.0,1.22750382]
[1754806286469,0.49552421,118230.0,118220.0,0.97241691]
[1754806286769,0.49552421,118230.0,118220.0,1.05699111]
[1754806286972,0.49552421,118230.0,118220.0,1.31207802]
[1754806287970,0.2404373,118230.0,118220.0,1.31207802]
[1754806288173,0.49552421,118230.0,118220.0,1.31207802]
[1754806288473,0.85632421,118230.0,118220.0,0.71733]
[1754806288666,0.85632421,118230.0,118220.0,1.22750382]
[1754806290877,0.6012373,118230.0,118220.0,1.22750382]
[1754806291173,0.87536123,118230.0,118220.0,1.22750382]
[1754806291368,0.87536123,118230.0,118220.0,1.31207802]
[1754806291574,0.49552421,118230.0,118220.0,1.31207802]
[1754806292168,0.51456148,118230.0,118220.0,1.31207802]
[1754806292367,0.49552421,118230.0,118220.0,1.31207802]
[1754806292768,0.85632421,118230.0,118220.0,1.22750382]
[1754806293075,0.87536154,118230.0,118220.0,1.22750382]
[1754806293872,0.87536154,118230.0,118220.0,1.31207792]
[1754806294072,0.49552421,118230.0,118220.0,1.31207792]
[1754806294272,0.51456213,118230.0,118220.0,1.31207792]
[1754806294576,0.51456213,118230.0,118220.0,1.05699101]
[1754806295171,0.85632421,118230.0,118220.0,0.97241691]
[1754806295571,0.2404373,118230.0,118220.0,1.05699101]
[1754806295772,0.49552421,118230.0,118220.0,1.05699101]
[1754806296378,0.49552421,118230.0,118220.0,1.31207792]
[1754806296870,0.49552421,118230.0,118220.0,1.22750382]
[1754806297180,0.85632421,118230.0,118220.0,0.97241691]
[1754806298280,0.49552421,118230.0,118220.0,1.05699111]
[1754806299780,0.2404373,118230.0,118220.0,1.05699111]
[1754806299979,0.49552421,118230.0,118220.0,1.05699111]
[1754806301379,0.49552421,118230.0,118220.0,1.31207802]
[1754806301973,0.49552421,118230.0,118220.0,1.05699111]
[1754806304380,0.49552421,118230.0,118220.0,0.8019042]
[1754806304682,0.49552421,118230.0,118220.0,1.05699111]
[1754806305780,0.49552421,118230.0,118220.0,0.8019042]
[1754806305984,0.49552421,118230.0,118220.0,1.05699111]
[1754806306886,0.85632421,118230.0,118220.0,0.97241691]
[1754806307387,0.85632421,118230.0,118220.0,0.71733]
[1754806307586,0.85632421,118230.0,118220.0,0.97241691]
[1754806307782,0.49552421,118230.0,118220.0,0.71733]
[1754806307986,0.85632421,118230.0,118220.0,0.97241691]
[1754806308693,0.49552421,118230.0,118220.0,1.05699111]
[1754806309792,0.85632421,118230.0,118220.0,0.97241691]
[1754806310094,0.6012373,118230.0,118220.0,1.05699111]
[1754806310292,0.49552421,118230.0,118220.0,1.05699111]
[1754806311293,0.49552421,118230.0,118220.0,0.71733]
[1754806311493,0.49552421,118230.0,118220.0,1.05699111]
[1754806314697,0.49552421,118230.0,118220.0,0.8019042]
[1754806314896,0.49552421,118230.0,118220.0,1.05699111]
[1754806317798,0.49552421,118230.0,118220.0,0.66991111]
[1754806318097,0.49552421,118230.0,118220.0,1.05659111]
[1754806327308,0.49552421,118230.0,118220.0,0.97201691]
[1754806328018,0.85632421,118230.0,118220.0,0.97201691]
[1754806329404,1.13030348,118230.0,118220.0,0.28631]
[1754806329702,0.2346841,118220.0,118210.0,0.0003]
[1754806329907,1.76623928,118220.0,118210.0,0.0002]
[1754806330105,1.68033637,118220.0,118210.0,0.0002]
[1754806330309,1.93542328,118220.0,118210.0,0.0002]
[1754806330702,0.1463313,118210.0,118200.0,0.01718988]
[1754806330903,1.12454215,118210.0,118200.0,9e-08]
[1754806331110,0.2346984,118200.0,118190.0,0.0001]
[1754806331313,0.2037056,118190.0,118180.0,0.4069]
[1754806331511,0.91913949,118190.0,118180.0,0.4068]
[1754806332716,0.91913949,118190.0,118180.0,0.66188691]
[1754806333212,0.91913949,118190.0,118180.0,0.4068]
[1754806333414,0.91913949,118190.0,118180.0,0.66188691]
[1754806335509,0.92982067,118190.0,118180.0,0.66188691]
[1754806337318,0.92982067,118190.0,118180.0,0.4068]
[1754806341322,0.67473376,118190.0,118180.0,0.4068]
[1754806341521,0.92982067,118190.0,118180.0,0.66188691]
[1754806343117,0.92982067,118190.0,118180.0,0.93633382]
[1754806343320,0.92982067,118190.0,118180.0,0.68124691]
[1754806344319,0.92982067,118190.0,118180.0,0.66188691]
[1754806344517,0.92982067,118190.0,118180.0,0.4068]
[1754806344718,0.92982067,118190.0,118180.0,0.66188691]
[1754806346515,0.0846028,118180.0,118170.0,0.2691]
[1754806346822,0.48979971,118180.0,118170.0,0.93088691]
[1754806347214,0.85059971,118180.0,118170.0,0.93088691]
[1754806347520,0.85059971,118180.0,118170.0,1.01549681]
[1754806347721,0.48979971,118180.0,118170.0,1.01649681]
[1754806348018,1.10568662,118180.0,118170.0,0.6768]
[1754806348217,1.10568662,118180.0,118170.0,0.001]
[1754806348719,1.10568662,118180.0,118170.0,0.003]
[1754806350819,1.10568662,118180.0,118170.0,0.02324]
[1754806351021,1.10588662,118180.0,118170.0,0.02344]
[1754806351320,0.85079971,118180.0,118170.0,0.0032]
[1754806351525,0.85079971,118180.0,118170.0,0.27852691]
[1754806352725,0.93623353,118180.0,118170.0,0.02344]
[1754806356322,0.93623353,118180.0,118170.0,0.0032]
[1754806359832,0.95501714,118180.0,118170.0,0.0032]
[1754806360636,0.61449641,118180.0,118170.0,0.0032]
[1754806360828,0.95501714,118180.0,118170.0,0.0032]
[1754806361429,0.61449641,118180.0,118170.0,0.0032]
[1754806361621,0.95501714,118180.0,118170.0,0.0032]
[1754806361830,0.93623353,118180.0,118170.0,0.0032]
[1754806362224,0.4456028,118180.0,118170.0,0.0032]
[1754806362432,0.0848028,118180.0,118170.0,0.46868073]
[1754806362627,0.2376428,118180.0,118170.0,0.82948073]
[1754806362936,0.0002,118180.0,118170.0,0.82948073]
[1754806363134,0.1153428,118180.0,118170.0,0.82948073]
[1754806363434,0.2376428,118180.0,118170.0,0.82948073]
[1754806365328,0.2376428,118180.0,118170.0,0.48896]
[1754806365538,0.2376428,118180.0,118170.0,0.82948073]
[1754806366334,0.2376428,118180.0,118170.0,0.38579]
[1754806366531,0.57816353,118180.0,118170.0,0.41155]
[1754806367230,0.2376428,118180.0,118170.0,0.41155]
[1754806367635,0.5984428,118180.0,118170.0,0.41155]
[1754806368335,0.93896353,118180.0,118170.0,0.0032]
[1754806370033,0.95776198,118180.0,118170.0,0.0032]
[1754806374141,0.2374499,118170.0,118160.0,0.0001]
[1754806374341,0.2374571,118160.0,118150.0,0.0001]
[1754806374541,0.1722142,118150.0,118140.0,0.69519278]
[1754806374834,0.2373642,118150.0,118140.0,0.69519278]
[1754806375039,0.93868493,118150.0,118140.0,0.269]
[1754806375234,0.2373642,118150.0,118140.0,0.269]
[1754806375836,0.5981642,118150.0,118140.0,0.29079]
[1754806376040,0.6001642,118150.0,118140.0,0.30379]
[1754806376740,0.6001642,118150.0,118140.0,0.283]
[1754806376943,0.94068493,118150.0,118140.0,0.283]
[1754806377339,0.6001642,118150.0,118140.0,0.283]
[1754806377542,0.5981642,118150.0,118140.0,0.271]
[1754806377743,0.93868493,118150.0,118140.0,0.271]
[1754806378240,0.5981642,118150.0,118140.0,0.271]
[1754806379040,0.93868493,118150.0,118140.0,0.271]
[1754806379642,0.5981642,118150.0,118140.0,0.271]
[1754806379844,0.93868493,118150.0,118140.0,0.271]
[1754806380442,0.93868493,118150.0,118140.0,0.002]
[1754806380841,0.5981642,118150.0,118140.0,0.002]
[1754806381439,1.32592493,118150.0,118140.0,0.002]
[1754806382741,1.34466658,118150.0,118130.0,0.0002]
[1754806383046,0.93879213,118140.0,118130.0,0.0002]
[1754806383251,0.93879213,118140.0,118130.0,0.0001]
[1754806383751,0.93879213,118140.0,118130.0,0.0081]
[1754806384045,0.93879213,118140.0,118130.0,0.0151]
[1754806384941,0.93979213,118140.0,118130.0,0.0161]
[1754806385349,0.94079213,118140.0,118130.0,0.0171]
[1754806393651,0.6002714,118140.0,118130.0,0.0171]
[1754806393949,0.94099213,118140.0,118130.0,0.0173]
[1754806396248,0.6004714,118140.0,118130.0,0.37853073]
[1754806398056,0.6004714,118140.0,118130.0,0.03801]
[1754806401055,0.6004714,118140.0,118130.0,0.37853073]
[1754806401362,0.2396714,118140.0,118130.0,0.37853073]
[1754806403348,0.6004714,118140.0,118130.0,0.37853073]
[1754806403554,0.6004714,118140.0,118130.0,0.03801]
[1754806404755,0.2396714,118140.0,118130.0,0.03801]
[1754806404960,0.6004714,118140.0,118130.0,0.03801]
[1754806405153,0.2396714,118140.0,118130.0,0.03801]
[1754806405356,0.6004714,118140.0,118130.0,0.03801]
[1754806405655,0.19811432,118140.0,118130.0,0.37853073]
[1754806405956,0.25427432,118140.0,118130.0,0.41262066]
[1754806407062,0.25427432,118140.0,118130.0,0.39578066]
[1754806407461,0.61507432,118140.0,118130.0,0.05525993]
[1754806407958,0.2356014,118140.0,118130.0,0.41262066]
[1754806408163,0.1194614,118140.0,118130.0,0.49725916]
[1754806408763,0.1194614,118140.0,118130.0,0.91894704]
[1754806409862,0.1194614,118140.0,118130.0,1.18794704]
[1754806410359,0.0022,118140.0,118130.0,1.65724304]
[1754806410562,0.0868313,118140.0,118130.0,1.65724304]
[1754806410966,0.0868313,118140.0,118130.0,1.59635516]
[1754806411165,0.0868313,118140.0,118130.0,1.67232666]
[1754806411365,0.0868313,118140.0,118130.0,1.59635516]
[1754806414066,0.1194613,118140.0,118130.0,1.59635516]
[1754806416668,0.1194613,118140.0,118130.0,1.98363516]
[1754806416871,0.1940813,118140.0,118130.0,1.98363516]
[1754806417272,0.1699213,118140.0,118130.0,1.98363516]
[1754806417476,0.1355713,118140.0,118130.0,1.98363516]
[1754806419774,0.2105713,118140.0,118130.0,0.68505993]
[1754806419981,0.57525203,118140.0,118130.0,1.15685833]
[1754806420379,0.2347313,118140.0,118130.0,1.05194066]
[1754806420575,0.93605203,118140.0,118130.0,0.03454993]
[1754806424877,0.93605203,118140.0,118130.0,0.0173]
[1754806427583,0.57525203,118140.0,118130.0,0.0173]
[1754806427787,0.93605203,118140.0,118130.0,0.0173]
[1754806427988,0.93605203,118140.0,118130.0,0.0345393]
[1754806430782,0.5955313,118140.0,118130.0,0.0345393]
[1754806431089,0.93605203,118140.0,118130.0,0.0345393]
[1754806431686,0.5955313,118140.0,118130.0,0.0345393]
[1754806431888,0.93605203,118140.0,118130.0,0.0345393]
[1754806435593,0.5955313,118140.0,118130.0,0.0345393]
[1754806435791,0.93605203,118140.0,118130.0,0.0345393]
[1754806438693,0.5955313,118140.0,118130.0,0.0345393]
[1754806438884,0.1146683,118130.0,118120.0,0.32990499]
[1754806439089,0.2300555,118120.0,118110.0,0.06090499]
[1754806439293,0.2300627,118110.0,118100.0,1.19497435]
[1754806439592,0.2300627,118110.0,118100.0,1.19487435]
[1754806440384,0.24021942,118110.0,118100.0,1.19487435]
[1754806440789,0.2300627,118110.0,118100.0,1.19487435]
[1754806440984,0.1715527,118110.0,118100.0,1.29589425]
[1754806441495,0.2300627,118110.0,118100.0,1.29589425]
[1754806441695,0.0846527,118110.0,118100.0,1.29589425]
[1754806441894,0.0846527,118110.0,118100.0,1.70443326]
[1754806442493,0.0846527,118110.0,118100.0,1.97343326]
[1754806442894,0.0846455,118120.0,118110.0,0.1708727]
[1754806443086,0.0846455,118120.0,118110.0,0.87219343]
[1754806443291,0.0846455,118120.0,118110.0,1.04152142]
[1754806443591,0.0846455,118120.0,118110.0,1.11749292]
[1754806444298,0.0866455,118120.0,118110.0,1.12449292]
[1754806444498,0.0866455,118120.0,118110.0,1.04852142]
[1754806445190,0.1166755,118120.0,118110.0,0.70800069]
[1754806445396,0.1166755,118120.0,118110.0,1.04852142]
[1754806447399,0.1166755,118120.0,118110.0,1.12449292]
[1754806448292,0.1166755,118120.0,118110.0,1.39349292]
[1754806448601,0.1186755,118120.0,118110.0,1.39749292]
[1754806454604,0.1186755,118120.0,118110.0,1.22816493]
[1754806456206,0.1350755,118120.0,118110.0,1.22816493]
[1754806456411,0.1598055,118120.0,118110.0,1.22816493]
[1754806457109,0.1598055,118120.0,118110.0,0.8876442]
[1754806457299,0.2141355,118120.0,118110.0,1.22816493]
[1754806458107,0.1798155,118120.0,118110.0,1.22816493]
[1754806458308,0.1800155,118120.0,118110.0,1.22836493]
[1754806461604,0.1552855,118120.0,118110.0,1.22836493]
[1754806462412,0.1552855,118120.0,118110.0,1.58916493]
[1754806462613,0.1552855,118120.0,118110.0,1.51319343]
[1754806463112,0.1552855,118120.0,118110.0,1.58916748]
[1754806465514,0.1552855,118120.0,118110.0,1.97764748]
[1754806465714,0.2362755,118120.0,118110.0,1.97678748]
[1754806468511,0.2362755,118120.0,118110.0,1.57323675]
[1754806468715,0.2362755,118120.0,118110.0,0.89991675]
[1754806468917,0.2362755,118120.0,118110.0,1.1847427]
[1754806469110,0.2362755,118120.0,118110.0,1.16446343]
[1754806469314,0.2362755,118120.0,118110.0,1.24043748]
[1754806469915,0.2362755,118120.0,118110.0,1.15578478]
[1754806470318,0.2362755,118120.0,118110.0,0.73980478]
[1754806470510,0.2362755,118120.0,118110.0,1.07981073]
[1754806471415,0.2362755,118120.0,118110.0,0.73929]
[1754806473621,0.2362755,118120.0,118110.0,0.8239427]
[1754806475126,0.2362755,118120.0,118110.0,0.73929]
[1754806476418,0.2362755,118120.0,118110.0,0.81526405]
[1754806477624,0.93759623,118120.0,118110.0,0.79700085]
[1754806477819,0.5970755,118120.0,118110.0,0.79700085]
[1754806478018,0.5970755,118120.0,118110.0,0.52800085]
[1754806478523,0.2362755,118120.0,118110.0,0.52800085]
[1754806478825,0.2362755,118120.0,118110.0,0.45997085]
[1754806479025,0.93759623,118120.0,118110.0,0.45997085]
[1754806479524,0.93759623,118120.0,118110.0,0.48747085]
[1754806485536,0.93759623,118120.0,118110.0,0.50263405]
[1754806485923,0.93759623,118120.0,118110.0,0.42666]
[1754806488839,0.57679623,118120.0,118110.0,0.42666]
[1754806489238,0.57679623,118120.0,118110.0,0.46719]